fUSD/lending_fUSD_20240318
["ID","MTS","AMOUNT","RATE_DAILY","PERIOD"]
[319488805,1710800043412,-2083.43,0.00027123,2]
[319488806,1710800043422,-154.86179711,0.00027123,2]
[319488807,1710800043432,-873.95,0.00027123,2]
[319488808,1710800043441,-1539.77,0.00027123,2]
[319488809,1710800043451,-572.93,0.00027123,2]
[319488810,1710800043461,-1218.6,0.00027123,2]
[319488811,1710800043470,-762.41,0.00027123,2]
[319488812,1710800043480,-805.44,0.00027123,2]
[319488813,1710800043489,-2278.77,0.00027123,2]
[319488814,1710800043499,-2011.92,0.00027123,2]
[319488815,1710800043511,-2062.21,0.00027123,2]
[319488816,1710800043520,-768.87,0.00027123,2]
[319488817,1710800043530,-500.0,0.00027123,2]
[319488818,1710800043539,-971.93,0.00027123,2]
[319488819,1710800043549,-1606.59,0.00027123,2]
[319488820,1710800043559,-1340.16,0.00027123,2]
[319488821,1710800043568,-1007.76,0.00027123,2]
[319488822,1710800043578,-4162.89,0.00027123,2]
[319488823,1710800043587,-1051.06,0.00027123,2]
[319488824,1710800043597,-699.3,0.00027123,2]
[319488825,1710800043609,-518.73,0.00027123,2]
[319488826,1710800043618,-1220.37,0.00027123,2]
[319488827,1710800043628,-1416.75,0.00027123,2]
[319488828,1710800043637,-1475.69,0.00027123,2]
[319488829,1710800043646,-1579.78,0.00027123,2]
[319488830,1710800043657,-960.76,0.00027123,2]
[319488831,1710800043666,-598.24,0.00027123,2]
[319488832,1710800043676,-3689.48,0.00027123,2]
[319488833,1710800043686,-685.26,0.00027123,2]
[319488834,1710800043695,-1883.02,0.00027123,2]
[319488835,1710800043704,-725.93,0.00027123,2]
[319488836,1710800043713,-597.67,0.00027123,2]
[319488837,1710800043722,-582.85,0.00027123,2]
[319488838,1710800043732,-945.24,0.00027123,2]
[319488839,1710800043741,-3264.27,0.00027123,2]
[319488840,1710800043750,-1114.59,0.00027123,2]
[319488841,1710800043764,-1101.09,0.00027123,2]
[319488842,1710800043774,-3081.47,0.00027123,2]
[319488843,1710800043783,-1090.35,0.00027123,2]
[319488844,1710800043793,-545.12,0.00027123,2]
[319488845,1710800043802,-525.35,0.00027123,2]
[319488846,1710800043812,-926.2,0.00027123,2]
[319488847,1710800043821,-738.48,0.00027123,2]
[319488848,1710800043830,-661.43,0.00027123,2]
[319488849,1710800043839,-521.01,0.00027123,2]
[319488850,1710800043848,-3873.88,0.00027123,2]
[319488851,1710800043858,-1479.1,0.00027123,2]
[319488852,1710800043867,-2791.36,0.00027123,2]
[319488853,1710800043876,-15199.29,0.00027123,2]
[319488854,1710800043885,-8062.17,0.00027123,2]
[319488855,1710800043895,-524.35,0.00027123,2]
[319488856,1710800043905,-1469.15,0.00027123,2]
[319488857,1710800043914,-1368.38,0.00027123,2]
[319488858,1710800043924,-578.84,0.00027123,2]
[319488859,1710800043934,-625.58,0.00027123,2]
[319488860,1710800043944,-500.0,0.00027123,2]
[319488861,1710800043954,-659.71,0.00027123,2]
[319488862,1710800043964,-1165.69,0.00027123,2]
[319488863,1710800043974,-522.17,0.00027123,2]
[319488864,1710800043984,-500.0,0.00027123,2]
[319488865,1710800043993,-547.31,0.00027123,2]
[319488866,1710800044002,-500.0,0.00027123,2]
[319488867,1710800044019,-1931.5,0.00027123,2]
[319488868,1710800044029,-5194.45,0.00027123,2]
[319488869,1710800044039,-1852.16,0.00027123,2]
[319488870,1710800044048,-4366.56,0.00027123,2]
[319488871,1710800044057,-2626.87,0.00027123,2]
[319488872,1710800044068,-4566.9,0.00027123,2]
[319488873,1710800044195,-643.53,0.00027123,2]
[319488874,1710800044205,-1560.19,0.00027123,2]
[319488875,1710800044215,-574.42,0.00027123,2]
[319488876,1710800044224,-7356.66,0.00027123,2]
[319488877,1710800044233,-2335.37,0.00027123,2]
[319488878,1710800044242,-1433.97,0.00027123,2]
[319488879,1710800044251,-1302.8,0.00027123,2]
[319488880,1710800044266,-12149.23,0.00027123,2]
[319488881,1710800044275,-976.06,0.00027123,2]
[319488882,1710800044284,-500.0,0.00027123,2]
[319488883,1710800044293,-596.59,0.00027123,2]
[319488884,1710800044302,-773.37,0.00027123,2]
[319488885,1710800044310,-12163.47,0.00027123,2]
[319488886,1710800044320,-503.34454515,0.00027123,2]
[319488887,1710800044328,-1040.95,0.00027123,2]
[319488888,1710800044337,-4014.74,0.00027123,2]
[319488889,1710800044346,-1666.88,0.00027123,2]
[319488890,1710800044355,-676.8,0.00027123,2]
[319488891,1710800044365,-798.37,0.00027123,2]
[319488892,1710800044374,-2937.18,0.00027123,2]
[319488893,1710800044383,-514.53,0.00027123,2]
[319488894,1710800044394,-630.18,0.00027123,2]
[319488895,1710800044403,-500.0,0.00027123,2]
[319488896,1710800044413,-4002.95,0.00027123,2]
[319488897,1710800044423,-500.0,0.00027123,2]
[319488898,1710800044433,-1825.34,0.00027123,2]
[319488899,1710800044443,-2538.34,0.00027123,2]
[319488900,1710800044452,-713.44,0.00027123,2]
[319488901,1710800044463,-1704.18,0.00027123,2]
[319488902,1710800044472,-2264.59,0.00027123,2]
[319488903,1710800044482,-999.91,0.00027123,2]
[319488904,1710800044491,-3032.32,0.00027123,2]
[319488905,1710800044500,-1092.32,0.00027123,2]
[319488906,1710800044515,-1455.99,0.00027123,2]
[319488907,1710800044524,-1138.58,0.00027123,2]
[319488908,1710800044533,-951.86,0.00027123,2]
[319488909,1710800044543,-780.67,0.00027123,2]
[319488910,1710800044552,-1309.57,0.00027123,2]
[319488911,1710800044561,-500.0,0.00027123,2]
[319488912,1710800044571,-4539.82,0.00027123,2]
[319488913,1710800044580,-4994.79,0.00027123,2]
[319488914,1710800044589,-1485.77,0.00027123,2]
[319488915,1710800044617,-7034.98,0.00027123,2]
[319488916,1710800044658,-849.91,0.00027123,2]
[319488917,1710800044668,-500.0,0.00027123,2]
[319488918,1710800044678,-1794.57,0.00027123,2]
[319488919,1710800044689,-750.9,0.00027123,2]
[319488920,1710800044699,-6038.49,0.00027123,2]
[319488921,1710800044709,-2385.09,0.00027123,2]
[319488922,1710800044718,-1615.86,0.00027123,2]
[319488923,1710800044728,-1135.58,0.00027123,2]
[319488924,1710800044738,-6456.64,0.00027123,2]
[319488925,1710800044747,-979.41,0.00027123,2]
[319488926,1710800044761,-942.12,0.00027123,2]
[319488927,1710800044771,-1504.81,0.00027123,2]
[319488928,1710800044781,-854.48,0.00027123,2]
[319488929,1710800044790,-508.22,0.00027123,2]
[319488930,1710800044800,-662.67,0.00027123,2]
[319488931,1710800044809,-40338.6,0.00027123,2]
[319488932,1710800044818,-2157.68,0.00027123,2]
[319488933,1710800044828,-1120.6,0.00027123,2]
[319488934,1710800044838,-2520.23,0.00027123,2]
[319488935,1710800044848,-2358.27,0.00027123,2]
[319488936,1710800044858,-4121.83,0.00027123,2]
[319488937,1710800044867,-2259.16,0.00027123,2]
[319488938,1710800044877,-1192.63,0.00027123,2]
[319488939,1710800044886,-6231.23,0.00027123,2]
[319488940,1710800044895,-3410.69,0.00027123,2]
[319488941,1710800044904,-1006.0,0.00027188,2]
[319488942,1710800044913,-741.17304731,0.00027188,2]
[319488943,1710800044923,-4623.0,0.00027188,2]
[319488944,1710800044932,-1063.0,0.00027188,2]
[319488945,1710800044942,-341.0,0.00027188,2]
[319488946,1710800044951,-624.49905019,0.0002719,2]
[319488947,1710800044960,-1000.0,0.00027194,2]
[319488948,1710800044969,-1675.48924789,0.000272,30]
[319488949,1710800044979,-20000.0,0.000272,5]
[319488950,1710800044989,-150.0,0.00027227,4]
[319488951,1710800044998,-153.05383812,0.00027228,2]
[319488952,1710800045012,-150.0,0.00027232,2]
[319488953,1710800045022,-152.0,0.00027247,4]
[319488954,1710800045031,-166.23,0.00027257,2]
[319488955,1710800045040,-500.0,0.000273,120]
[319488956,1710800045052,-153.80188616,0.00027317,2]
[319488957,1710800045062,-150.0,0.00027339,4]
[319488958,1710800045072,-150.0,0.00027351,4]
[319488959,1710800045082,-5800.0,0.00027357,2]
[319488960,1710800045092,-7497.06656309,0.0002736,120]
[319488961,1710800045101,-5800.0,0.00027366,2]
[319488962,1710800045111,-5800.0,0.00027375,2]
[319488963,1710800045120,-5800.0,0.00027383,2]
[319488964,1710800045130,-5800.0,0.00027392,2]
[319488965,1710800045139,-150.0,0.00027396,2]
[319488966,1710800045149,-754.65,0.00027397,2]
[319488967,1710800045158,-356.17768902,0.00027397,2]
[319488968,1710800045168,-1183.48,0.00027397,2]
[319488969,1710800045178,-841.06,0.00027397,2]
[319488970,1710800045188,-1050.21,0.00027397,2]
[319488971,1710800045199,-603.24,0.00027397,2]
[319488972,1710800045208,-864.95,0.00027397,2]
[319488973,1710800045217,-801.98,0.00027397,2]
[319488974,1710800045226,-2023.13,0.00027397,2]
[319488975,1710800045236,-2257.25,0.00027397,2]
[319488976,1710800045245,-510.0,0.00027397,120]
[319488977,1710800045254,-1080.91,0.00027397,2]
[319488978,1710800045267,-794.11,0.00027397,2]
[319488979,1710800045276,-753.34,0.00027397,2]
[319488980,1710800045286,-841.73,0.00027397,2]
[319488981,1710800045295,-637.28,0.00027397,2]
[319488982,1710800045304,-2219.16,0.00027397,2]
[319488983,1710800045313,-822.95,0.00027397,2]
[319488984,1710800045322,-532.03,0.00027397,2]
[319488985,1710800045332,-500.0,0.00027397,2]
[319488986,1710800045341,-666.77,0.00027397,2]
[319488987,1710800045351,-1083.62,0.00027397,2]
[319488988,1710800045360,-2410.75,0.00027397,2]
[319488989,1710800045369,-1096.76,0.00027397,2]
[319488990,1710800045379,-1579.95,0.00027397,2]
[319488991,1710800045388,-1153.52,0.00027397,2]
[319488992,1710800045397,-1079.02,0.00027397,2]
[319488993,1710800045407,-500.0,0.00027397,2]
[319488994,1710800045417,-604.92,0.00027397,2]
[319488995,1710800045426,-2112.17,0.00027397,2]
[319488996,1710800045435,-788.06,0.00027397,2]
[319488997,1710800045445,-965.6,0.00027397,2]
[319488998,1710800045455,-567.24,0.00027397,2]
[319488999,1710800045464,-1057.53,0.00027397,2]
[319489000,1710800045473,-1346.77,0.00027397,2]
[319489001,1710800045483,-712.98,0.00027397,2]
[319489002,1710800045493,-624.81,0.00027397,2]
[319489003,1710800045502,-500.0,0.00027397,2]
[319489004,1710800045516,-750.79,0.00027397,2]
[319489005,1710800045526,-1820.6,0.00027397,2]
[319489006,1710800045535,-628.64,0.00027397,2]
[319489007,1710800045545,-787.89,0.00027397,2]
[319489008,1710800045554,-593.51,0.00027397,2]
[319489009,1710800045564,-750.42,0.00027397,2]
[319489010,1710800045574,-622.98,0.00027397,2]
[319489011,1710800045584,-1628.79,0.00027397,2]
[319489012,1710800045594,-3414.73,0.00027397,2]
[319489013,1710800045605,-830.73,0.00027397,2]
[319489014,1710800045616,-837.33,0.00027397,2]
[319489015,1710800045627,-1594.83,0.00027397,2]
[319489016,1710800045638,-1565.76,0.00027397,2]
[319489017,1710800045649,-2289.86,0.00027397,2]
[319489018,1710800045659,-2327.27,0.00027397,2]
[319489019,1710800045669,-1043.46,0.00027397,2]
[319489020,1710800045678,-1166.79,0.00027397,2]
[319489021,1710800045690,-549.91,0.00027397,2]
[319489022,1710800045701,-568.66,0.00027397,2]
[319489023,1710800045711,-771.19,0.00027397,2]
[319489024,1710800045721,-2753.66,0.00027397,2]
[319489025,1710800045730,-1513.08,0.00027397,2]
[319489026,1710800045740,-1842.48,0.00027397,2]
[319489027,1710800045749,-1460.74,0.00027397,2]
[319489028,1710800045761,-942.07,0.00027397,2]
[319489029,1710800045771,-895.46,0.00027397,2]
[319489030,1710800045780,-1989.79,0.00027397,2]
[319489031,1710800045789,-1990.34,0.00027397,2]
[319489032,1710800045798,-594.54,0.00027397,2]
[319489033,1710800045807,-570.11,0.00027397,2]
[319489034,1710800045816,-300.0,0.00027397,5]
[319489035,1710800045825,-2010.18,0.00027397,2]
[319489036,1710800045834,-1089.38,0.00027397,2]
[319489037,1710800045843,-1225.65,0.00027397,2]
[319489038,1710800045852,-705.19,0.00027397,2]
[319489039,1710800045862,-2976.15,0.00027397,2]
[319489040,1710800045870,-508.99,0.00027397,2]
[319489041,1710800045879,-501.15,0.00027397,2]
[319489042,1710800045888,-1173.9,0.00027397,2]
[319489043,1710800045898,-1969.89,0.00027397,2]
[319489044,1710800045907,-551.56,0.00027397,2]
[319489045,1710800045916,-1787.1,0.00027397,2]
[319489046,1710800045925,-634.39,0.00027397,2]
[319489047,1710800045935,-515.85,0.00027397,2]
[319489048,1710800045944,-1763.14,0.00027397,2]
[319489049,1710800045953,-500.0,0.00027397,2]
[319489050,1710800045962,-1610.23,0.00027397,2]
[319489051,1710800045972,-698.44,0.00027397,2]
[319489052,1710800045981,-757.78,0.00027397,2]
[319489053,1710800045990,-1107.01,0.00027397,2]
[319489054,1710800045999,-3621.53,0.00027397,2]
[319489055,1710800046009,-3272.98,0.00027397,2]
[319489056,1710800046018,-500.0,0.00027397,2]
[319489057,1710800046027,-617.42,0.00027397,2]
[319489058,1710800046036,-500.0,0.00027397,2]
[319489059,1710800046045,-833.03,0.00027397,2]
[319489060,1710800046054,-2995.13,0.00027397,2]
[319489061,1710800046063,-260.07562214,0.00027397,2]
[319489062,1710800046072,-1059.1,0.00027397,2]
[319489063,1710800046081,-2205.14,0.00027397,2]
[319489064,1710800046090,-1379.17,0.00027397,2]
[319489065,1710800046099,-1296.97,0.00027397,2]
[319489066,1710800046109,-684.91,0.00027397,2]
[319489067,1710800046117,-500.0,0.00027397,2]
[319489068,1710800046127,-1167.23,0.00027397,2]
[319489069,1710800046136,-1111.67,0.00027397,2]
[319489070,1710800046146,-1840.74,0.00027397,2]
[319489071,1710800046155,-1159.15,0.00027397,2]
[319489072,1710800046164,-1071.26,0.00027397,2]
[319489073,1710800046174,-732.2,0.00027397,2]
[319489074,1710800046184,-2487.12,0.00027397,2]
[319489075,1710800046194,-1409.81,0.00027397,2]
[319489076,1710800046204,-2258.29,0.00027397,2]
[319489077,1710800046214,-885.61,0.00027397,2]
[319489078,1710800046225,-728.7,0.00027397,2]
[319489079,1710800046235,-981.29,0.00027397,2]
[319489080,1710800046245,-619.02,0.00027397,2]
[319489081,1710800046255,-3027.38,0.00027397,2]
[319489082,1710800046266,-2230.77,0.00027397,2]
[319489083,1710800046275,-2148.85,0.00027397,2]
[319489084,1710800046285,-847.31,0.00027397,2]
[319489085,1710800046294,-500.0,0.00027397,2]
[319489086,1710800046303,-1040.92,0.00027397,2]
[319489087,1710800046313,-1016.05,0.00027397,2]
[319489088,1710800046322,-625.78,0.00027397,2]
[319489089,1710800046332,-1988.29,0.00027397,2]
[319489090,1710800046341,-673.87,0.00027397,2]
[319489091,1710800046350,-803.43,0.00027397,2]
[319489092,1710800046360,-2712.0,0.00027397,2]
[319489093,1710800046369,-618.27,0.00027397,2]
[319489094,1710800046378,-925.33,0.00027397,2]
[319489095,1710800046388,-1492.36,0.00027397,2]
[319489096,1710800046397,-1934.24,0.00027397,2]
[319489097,1710800046406,-1347.96,0.00027397,2]
[319489098,1710800046416,-500.0,0.00027397,2]
[319489099,1710800046425,-618.35,0.00027397,2]
[319489100,1710800046435,-3249.34,0.00027397,2]
[319489101,1710800046444,-736.87,0.00027397,2]
[319489102,1710800046453,-1048.99,0.00027397,2]
[319489103,1710800046463,-695.99,0.00027397,2]
[319489104,1710800046472,-1686.42,0.00027397,2]
[319489105,1710800046482,-265.25,0.00027397,2]
[319489106,1710800046491,-2027.85,0.00027397,2]
[319489107,1710800046501,-3300.65,0.00027397,2]
[319489108,1710800046511,-1879.8,0.00027397,2]
[319489109,1710800046521,-600.13,0.00027397,2]
[319489110,1710800046531,-689.62,0.00027397,2]
[319489111,1710800046541,-3602.93,0.00027397,2]
[319489112,1710800046551,-500.0,0.00027397,2]
[319489113,1710800046560,-500.0,0.00027397,2]
[319489114,1710800046569,-500.0,0.00027397,2]
[319489115,1710800046579,-500.0,0.00027397,2]
[319489116,1710800046589,-839.53,0.00027397,2]
[319489117,1710800046598,-500.0,0.00027397,2]
[319489118,1710800046608,-500.0,0.00027397,2]
[319489119,1710800046619,-734.91,0.00027397,2]
[319489120,1710800046628,-500.0,0.00027397,2]
[319489121,1710800046638,-500.0,0.00027397,2]
[319489122,1710800046647,-500.0,0.00027397,2]
[319489123,1710800046656,-500.0,0.00027397,2]
[319489124,1710800046666,-500.0,0.00027397,2]
[319489125,1710800046675,-500.0,0.00027397,2]
[319489126,1710800046685,-500.0,0.00027397,2]
[319489127,1710800046694,-1753.56,0.00027397,2]
[319489128,1710800046703,-508.05703869,0.00027397,2]
[319489129,1710800046713,-839.74,0.00027397,2]
[319489130,1710800046721,-500.0,0.00027397,2]
[319489131,1710800046730,-4941.23,0.00027397,2]
[319489132,1710800046740,-924.55,0.00027397,2]
[319489133,1710800046749,-646.58,0.00027397,2]
[319489134,1710800046760,-1444.11,0.00027397,2]
[319489135,1710800046769,-1862.07,0.00027397,2]
[319489136,1710800046779,-2596.77,0.00027397,2]
[319489137,1710800046789,-600.66,0.00027397,2]
[319489138,1710800046799,-1913.61,0.00027397,2]
[319489139,1710800046808,-1169.17,0.00027397,2]
[319489140,1710800046818,-501.0,0.00027397,2]
[319489141,1710800046827,-671.74,0.00027397,2]
[319489142,1710800046836,-460.21921673,0.00027397,2]
[319489143,1710800046845,-660.79,0.00027397,2]
[319489144,1710800046854,-4429.56,0.00027397,2]
[319489145,1710800046863,-645.13,0.00027397,2]
[319489146,1710800046873,-1387.34,0.00027397,2]
[319489147,1710800046882,-1092.65,0.00027397,2]
[319489148,1710800046892,-775.21,0.00027397,2]
[319489149,1710800046901,-1234.18,0.00027397,2]
[319489150,1710800046910,-1640.92,0.00027397,2]
[319489151,1710800046920,-660.8,0.00027397,2]
[319489152,1710800046929,-618.02,0.00027397,2]
[319489153,1710800046938,-500.0,0.00027397,2]
[319489154,1710800046947,-2991.4,0.00027397,2]
[319489155,1710800046957,-526.67,0.00027397,2]
[319489156,1710800046967,-520.66,0.00027397,2]
[319489157,1710800046977,-3432.69,0.00027397,2]
[319489158,1710800046988,-2512.6,0.00027397,2]
[319489159,1710800046998,-929.21,0.00027397,2]
[319489160,1710800047011,-553.17,0.00027397,2]
[319489161,1710800047021,-632.91,0.00027397,2]
[319489162,1710800047031,-587.03,0.00027397,2]
[319489163,1710800047041,-500.0,0.00027397,2]
[319489164,1710800047051,-500.0,0.00027397,2]
[319489165,1710800047061,-1670.28,0.00027397,2]
[319489166,1710800047071,-1508.72,0.00027397,2]
[319489167,1710800047081,-500.0,0.00027397,2]
[319489168,1710800047092,-588.94,0.00027397,2]
[319489169,1710800047102,-2672.81,0.00027397,2]
[319489170,1710800047112,-992.88,0.00027397,2]
[319489171,1710800047122,-1421.34,0.00027397,2]
[319489172,1710800047132,-1479.34,0.00027397,2]
[319489173,1710800047144,-778.13,0.00027397,2]
[319489174,1710800047154,-549.69,0.00027397,2]
[319489175,1710800047164,-1591.7,0.00027397,2]
[319489176,1710800047174,-1096.72,0.00027397,2]
[319489177,1710800047184,-2210.21,0.00027397,2]
[319489178,1710800047193,-1855.24,0.00027397,2]
[319489179,1710800047202,-1747.53,0.00027397,2]
[319489180,1710800047213,-869.7,0.00027397,2]
[319489181,1710800047223,-680.92,0.00027397,2]
[319489182,1710800047234,-665.42,0.00027397,2]
[319489183,1710800047245,-1181.58,0.00027397,2]
[319489184,1710800047258,-1501.92,0.00027397,2]
[319489185,1710800047268,-2323.42,0.00027397,2]
[319489186,1710800047278,-2355.45,0.00027397,2]
[319489187,1710800047290,-2348.13,0.00027397,2]
[319489188,1710800047300,-1841.43,0.00027397,2]
[319489189,1710800047310,-633.95,0.00027397,2]
[319489190,1710800047319,-2789.32,0.00027397,2]
[319489191,1710800047330,-1047.26,0.00027397,2]
[319489192,1710800047339,-506.7,0.00027397,2]
[319489193,1710800047349,-2028.96,0.00027397,2]
[319489194,1710800047358,-1121.74,0.00027397,2]
[319489195,1710800047367,-727.29,0.00027397,2]
[319489196,1710800047376,-1964.52,0.00027397,2]
[319489197,1710800047386,-800.57,0.00027397,2]
[319489198,1710800047396,-394.44702121,0.00027397,2]
[319489199,1710800047406,-855.83,0.00027397,2]
[319489200,1710800047416,-515.18,0.00027397,2]
[319489201,1710800047427,-805.44,0.00027397,2]
[319489202,1710800047437,-1465.25,0.00027397,2]
[319489203,1710800047447,-703.59,0.00027397,2]
[319489204,1710800047456,-1137.55,0.00027397,2]
[319489205,1710800047466,-1372.51,0.00027397,2]
[319489206,1710800047476,-1311.42,0.00027397,2]
[319489207,1710800047485,-890.31,0.00027397,2]
[319489208,1710800047495,-693.23,0.00027397,2]
[319489209,1710800047504,-606.63,0.00027397,2]
[319489210,1710800047516,-1355.8,0.00027397,2]
[319489211,1710800047526,-633.23,0.00027397,2]
[319489212,1710800047536,-931.19,0.00027397,2]
[319489213,1710800047545,-1311.22,0.00027397,2]
[319489214,1710800047554,-560.88,0.00027397,2]
[319489215,1710800047564,-578.22,0.00027397,2]
[319489216,1710800047573,-931.2,0.00027397,2]
[319489217,1710800047583,-1373.23,0.00027397,2]
[319489218,1710800047592,-1189.08,0.00027397,2]
[319489219,1710800047603,-500.0,0.00027397,2]
[319489220,1710800047614,-582.88,0.00027397,2]
[319489221,1710800047625,-807.67,0.00027397,2]
[319489222,1710800047635,-500.0,0.00027397,2]
[319489223,1710800047644,-428.48112004,0.00027397,2]
[319489224,1710800047654,-1318.07,0.00027397,2]
[319489225,1710800047664,-2537.59,0.00027397,2]
[319489226,1710800047674,-1833.13,0.00027397,2]
[319489227,1710800047683,-584.63,0.00027397,2]
[319489228,1710800047694,-922.71,0.00027397,2]
[319489229,1710800047703,-522.08,0.00027397,2]
[319489230,1710800047713,-667.48,0.00027397,2]
[319489231,1710800047722,-1186.68,0.00027397,2]
[319489232,1710800047731,-998.55,0.00027397,2]
[319489233,1710800047741,-1847.99,0.00027397,2]
[319489234,1710800047750,-797.09,0.00027397,2]
[319489235,1710800047763,-1079.26,0.00027397,2]
[319489236,1710800047772,-1856.02,0.00027397,2]
[319489237,1710800047781,-1186.25,0.00027397,2]
[319489238,1710800047790,-897.94,0.00027397,2]
[319489239,1710800047800,-1418.3,0.00027397,2]
[319489240,1710800047810,-844.5,0.00027397,2]
[319489241,1710800047819,-1228.33,0.00027397,2]
[319489242,1710800047829,-656.86,0.00027397,2]
[319489243,1710800047838,-1254.05,0.00027397,2]
[319489244,1710800047848,-1220.28,0.00027397,2]
[319489245,1710800047857,-524.26,0.00027397,2]
[319489246,1710800047868,-544.86,0.00027397,2]
[319489247,1710800047878,-1112.38,0.00027397,2]
[319489248,1710800047888,-990.25,0.00027397,2]
[319489249,1710800047897,-1554.62,0.00027397,2]
[319489250,1710800047907,-615.98,0.00027397,2]
[319489251,1710800047916,-1046.24,0.00027397,2]
[319489252,1710800047926,-525.88,0.00027397,2]
[319489253,1710800047935,-1155.33,0.00027397,2]
[319489254,1710800047945,-527.83,0.00027397,2]
[319489255,1710800047955,-208.23939067,0.00027397,2]
[319489256,1710800047964,-3244.32,0.00027397,2]
[319489257,1710800047974,-1017.43,0.00027397,2]
[319489258,1710800047983,-1859.5,0.00027397,2]
[319489259,1710800047993,-1754.86,0.00027397,2]
[319489260,1710800048003,-1204.75,0.00027397,2]
[319489261,1710800048015,-721.17,0.00027397,2]
[319489262,1710800048025,-1304.47,0.00027397,2]
[319489263,1710800048034,-1387.32,0.00027397,2]
[319489264,1710800048044,-1084.75,0.00027397,2]
[319489265,1710800048054,-984.35,0.00027397,2]
[319489266,1710800048063,-1042.11,0.00027397,2]
[319489267,1710800048073,-550.03,0.00027397,2]
[319489268,1710800048083,-3263.23,0.00027397,2]
[319489269,1710800048093,-1006.81,0.00027397,2]
[319489270,1710800048102,-1334.24,0.00027397,2]
[319489271,1710800048111,-772.45,0.00027397,2]
[319489272,1710800048121,-879.01,0.00027397,2]
[319489273,1710800048130,-1980.05,0.00027397,2]
[319489274,1710800048139,-577.06,0.00027397,2]
[319489275,1710800048148,-1289.15,0.00027397,2]
[319489276,1710800048158,-1162.86,0.00027397,2]
[319489277,1710800048167,-500.0,0.00027397,2]
[319489278,1710800048176,-1284.59,0.00027397,2]
[319489279,1710800048186,-1343.86,0.00027397,2]
[319489280,1710800048195,-2423.47,0.00027397,2]
[319489281,1710800048205,-539.59,0.00027397,2]
[319489282,1710800048215,-790.0,0.00027397,2]
[319489283,1710800048225,-1561.78,0.00027397,2]
[319489284,1710800048234,-2345.93,0.00027397,2]
[319489285,1710800048244,-1543.03,0.00027397,2]
[319489286,1710800048253,-688.89,0.00027397,2]
[319489287,1710800048266,-500.0,0.00027397,2]
[319489288,1710800048275,-779.42,0.00027397,2]
[319489289,1710800048285,-1455.91,0.00027397,2]
[319489290,1710800048294,-964.51,0.00027397,2]
[319489291,1710800048303,-865.84,0.00027397,2]
[319489292,1710800048313,-1604.71,0.00027397,2]
[319489293,1710800048324,-1347.47,0.00027397,2]
[319489294,1710800048335,-1883.82,0.00027397,2]
[319489295,1710800048345,-512.18,0.00027397,2]
[319489296,1710800048356,-615.15,0.00027397,2]
[319489297,1710800048366,-743.05,0.00027397,2]
[319489298,1710800048376,-1288.43,0.00027397,2]
[319489299,1710800048489,-532.05,0.00027397,2]
[319489300,1710800048530,-1050.86,0.00027397,2]
[319489301,1710800048540,-568.35,0.00027397,2]
[319489302,1710800048550,-801.95,0.00027397,2]
[319489303,1710800048560,-3692.13,0.00027397,2]
[319489304,1710800048570,-1021.88,0.00027397,2]